[Event "Croatian Team Cup Final 2022"]
[Site "Vodice"]
[Date "2022.05.19"]
[Round "2.4"]
[White "Novosel, Lovro"]
[Black "Srbis, Jurica"]
[Result "0-1"]
[ECO "E15"]
[WhiteElo "2279"]
[BlackElo "2451"]
[Annotator "TA"]
[PlyCount "86"]
[EventDate "2022.05.18"]
[EventType "team-tourn"]
[EventCountry "CRO"]
[SourceTitle "playchess.com"]
[Source "ChessBase"]
[SourceQuality "1"]
[TimeControl "40/5400+30:1800+30"]

{[%evp 11,86,10,16,12,14,-12,0,0,4,-4,22,0,-8,-12,-5,-44,-33,-51,-31,-60,-63,-55,-49,-91,-56,-57,-52,-61,-61,-53,-55,-56,-28,-36,-14,-65,-65,-60,-52,-80,-74,-74,-80,-81,-60,-71,-66,-76,-75,-131,-115,-348,-356,-511,-500,-558,-537,-553,-556,-562,-554,-562,-581,-574,-576,-585,-568,-556,-208,-568,-563,-564,-579,-566,-561,-1347,-1272]} 1. d4 {[%emt 0:00:37]} Nf6 {[%emt 0:00:16]} 2. c4 {[%emt 0:00:30]} e6 {[%emt 0:00:15]} 3. Nf3 {[%emt 0:00:06]} b6 {[%emt 0:00:26]} 4. g3 {[%emt 0:00:44]} Ba6 {[%emt 0:00:11]} 5. Qc2 {[%emt 0:00:58]} c5 {[%emt 0:00:12]} 6. Bg2 {[%emt 0:02:17]} Nc6 {[%emt 0:00:08]} 7. dxc5 {[%emt 0:02:53] E15: Queen's Indian: 4 g3 sidelines, 4 g3 Ba6 and 4 g3 Bb7 early deviations.} Bxc5 {[%emt 0:01:05] [#]} 8. Nbd2 $146 {[%emt 0:01:20]} (8. a3 $5 {[%cal Rb2b4]} Rc8 9. Nbd2 $11) ({Predecessor:} 8. a3 Rc8 9. Nbd2 Bb7 10. b4 Nd4 11. Qd3 Nxf3+ 12. Bxf3 Bxf3 13. Nxf3 Be7 14. O-O O-O 15. e4 d6 16. Bb2 {½-½ (32) Lebedev,V (2458)-Shablinsky,M (2462) ICCF email 2020}) 8... O-O {[%emt 0:04:43]} 9. a3 {[%emt 0:00:51] Black must now prevent b4. The position is equal.} Bb7 {[%emt 0:20:42]} 10. O-O {[%emt 0:09:39]} Rc8 {[%emt 0:02:16]} 11. b3 {[%emt 0:04:13]} (11. b4 $5 {[%cal Rb4c5]} Be7 12. Bb2 $11) 11... d5 {[%emt 0:02:04]} 12. Bb2 {[%emt 0:01:21] Prevents e5.} dxc4 {[%emt 0:04:58]} 13. bxc4 {[%emt 0:05:21]} Qe7 {[%emt 0:07:17]} 14. e3 {[%emt 0:05:29]} h6 {[%emt 0:02:38]} 15. Nb3 {[%emt 0:02:01]} Bd6 {[%emt 0:00:30]} 16. Rfc1 {[%emt 0:08:34]} Rfd8 {[%emt 0:02:36]} 17. c5 {[%emt 0:04:14]} bxc5 {[%emt 0:00:46]} 18. Nbd2 {[%emt 0:00:38]} Nb8 {[%emt 0:06:39]} 19. Nc4 {[%emt 0:01:00]} Nbd7 {[%emt 0:02:46]} 20. Nfd2 {[%emt 0:05:03]} Bxg2 {[%emt 0:00:34]} 21. Kxg2 {[%emt 0:00:02]} Bb8 {[%emt 0:02:38]} 22. Rab1 {[%emt 0:02:24]} Nd5 {[%emt 0:03:07]} 23. Bc3 {[%emt 0:05:20]} ({White should play} 23. e4 $11) 23... Nxc3 $15 {[%emt 0:01:47]} 24. Qxc3 {[%emt 0:00:05]} Nf6 {[%emt 0:01:18]} 25. Rb5 {[%emt 0:04:35]} Qd7 {[%emt 0:03:57]} 26. Rcb1 {[%emt 0:00:31]} Qd5+ {[%emt 0:00:10]} 27. Kg1 {[%emt 0:02:21]} Qh5 {[%emt 0:02:11]} 28. Kg2 {[%emt 0:06:05]} Qf5 {[%emt 0:06:32]} 29. Rb7 {[%emt 0:05:18]} h5 {[%emt 0:01:25][%cal Bh6h5,Bh5h4][%mdl 32]} ({Reject} 29... Ng4 $6 30. f3 Nf6 31. e4 $11) ({Much less strong is} 29... Rd3 30. e4 $1 Qxf2+ 31. Kxf2 $16) 30. f3 {[%emt 0:02:11]} (30. Qc1 $142) 30... h4 {[%emt 0:02:06]} 31. e4 $2 {[%emt 0:07:24] This move loses the game for White.} (31. R1b2 $17 {was the only defense.}) 31... Qg5 $19 {[%emt 0:01:39] The board is on fire.} 32. Nf1 {[%emt 0:00:39]} (32. Rxb8 $142 Rxb8 33. Rxb8 Rxb8 34. Nf1) 32... hxg3 {[%emt 0:00:51]} 33. hxg3 {[%emt 0:00:06] [#]} Bxg3 $1 {[%emt 0:05:45][%mdl 512]} 34. Nxg3 {[%emt 0:00:44] Qc1 is the strong threat.} Nh5 {[%emt 0:00:04][%cal Bf6h5,Bh5f4,Bf4d3,Bd3e5][%mdl 32]} 35. Qe1 {[%emt 0:08:15]} Rd4 {[%emt 0:03:10]} 36. Rb8 {[%emt 0:01:12]} Rxb8 {[%emt 0:00:04]} 37. Rxb8+ {[%emt 0:00:05]} Kh7 {[%emt 0:00:06]} 38. Ne3 {[%emt 0:03:33]} Nf4+ {[%emt 0:03:16]} 39. Kh1 {[%emt 0:00:47] [#]} Qh4+ $1 {[%emt 0:00:20]} 40. Kg1 {[%emt 0:00:00]} Nd3 {[%emt 0:00:00] Black is clearly winning.} 41. Ng2 {[%emt 0:03:59]} Qh3 {[%emt 0:02:35]} 42. Qe3 {[%emt 0:01:37] aiming for Ne2.} Qxg3 {[%emt 0:00:22]} 43. Rb1 {[%emt 0:00:48]} Ne5 {[%emt 0:01:30] Weighted Error Value: White=0.35/Black=0.05 (flawless)} 0-1

[Event "Croatian Team Cup Final 2022"]
[Site "Vodice"]
[Date "2022.05.19"]
[Round "2.5"]
[White "Tica, Sven"]
[Black "Kozul, Zdenko"]
[Result "1-0"]
[ECO "D73"]
[WhiteElo "2438"]
[BlackElo "2621"]
[Annotator "TA"]
[PlyCount "85"]
[EventDate "2022.05.18"]
[EventType "team-tourn"]
[EventCountry "CRO"]
[SourceTitle "playchess.com"]
[Source "ChessBase"]
[SourceQuality "1"]
[TimeControl "40/5400+30:1800+30"]

{[%evp 16,85,15,16,22,24,32,24,39,36,32,27,64,62,71,57,60,74,68,59,55,49,77,68,214,166,209,198,181,205,183,5,3,0,44,40,57,-41,-73,-41,0,0,0,0,0,0,0,-3061,549,547,2349,1409,1531,-8,-8,-12,0,-36,0,0,0,0,0,-14,-19,-15,-26,-20,0,-15,0,-86]} 1. d4 {[%emt 0:00:05]} Nf6 {[%emt 0:00:50]} 2. c4 {[%emt 0:00:08]} g6 {[%emt 0:00:06]} 3. Nf3 {[%emt 0:00:15]} Bg7 {[%emt 0:00:12]} 4. g3 {[%emt 0:00:07]} c6 {[%emt 0:02:21]} 5. Bg2 {[%emt 0:00:08]} O-O {[%emt 0:00:10]} 6. Nc3 {[%emt 0:00:06]} d5 {[%emt 0:00:06]} 7. cxd5 {[%emt 0:00:06]} cxd5 {[%emt 0:00:06]} 8. Ne5 {[%emt 0:00:05]} e6 {[%emt 0:00:20] 8...Bf5 injects fresh life into this line.} 9. Bg5 {[%emt 0:00:06]} h6 {[%emt 0:07:23] D73: Fianchetto Grünfeld: 5 Nf3 .} 10. Bf4 {[%emt 0:01:24]} Nbd7 {[%emt 0:01:53] [#]} 11. Nd3 $146 {[%emt 0:13:27]} ({Predecessor:} 11. Qd2 g5 12. Nxd7 Bxd7 13. Be5 Bc6 14. h4 Ne4 15. Bxe4 dxe4 16. Bxg7 Kxg7 17. Qe3 {1-0 (52) Jurek,J (2278)-Cecil,P (1962) Klatovy 2013}) 11... a6 {[%emt 0:14:56] White has an edge.} 12. Qd2 {[%emt 0:14:20]} Kh7 {[%emt 0:07:14]} 13. O-O {[%emt 0:05:02]} Qe7 {[%emt 0:05:42]} 14. Rac1 {[%emt 0:15:24]} Nb6 {[%emt 0:07:06]} 15. b3 Bd7 {[%emt 0:06:48]} 16. Bc7 {[%emt 0:02:16]} Nc8 {[%emt 0:00:00]} 17. Ba5 {[%emt 0:03:36] White is much more active. The black rooks are badly placed.} Nd6 {[%emt 0:09:17] Prevents e4.} 18. f3 {[%emt 0:02:30]} Rfc8 {[%emt 0:06:02]} 19. e4 {[%emt 0:03:57]} dxe4 {[%emt 0:05:31]} (19... Nfe8 $14) 20. fxe4 $18 {[%emt 0:06:00] Threatens to win with e5.} Rxc3 {[%emt 0:06:55]} 21. Qxc3 {[%emt 0:10:30]} (21. Bxc3 Nfxe4 22. Bxe4 Nxe4 $14) 21... Nfxe4 {[%emt 0:00:00]} 22. Qb4 {[%emt 0:06:25]} Qg5 {[%emt 0:02:42] And now ...Qe3+ would win.} 23. Rce1 {[%emt 0:12:12] Against Qe3+} (23. Rf4 $18) 23... Bb5 $1 $11 {[%emt 0:13:38]} 24. Rf3 {[%emt 0:02:33][%cal Od3e5]} ({Don't play} 24. Bxe4 Nxe4 25. Rxf7 Nxg3 $17) (24. Rxe4 Bxd3 25. Ref4 Bxf1 26. Bxf1 Rf8 $1 $17) 24... Qd5 {[%emt 0:00:00] Prevents Ne5.} 25. Ne5 $1 {[%emt 0:00:00] aiming for Rxf7.} f6 {[%emt 0:00:00]} 26. Ng4 {[%emt 0:00:56]} (26. a4 $1 $14 Bc6 27. Nxc6 Qxc6 28. Rff1) 26... f5 $15 {[%emt 0:00:00][%mdl 1024] Black has compensation.} 27. Ne5 {[%emt 0:00:00][%cal Of3c3]} Rc8 {[%emt 0:00:00] Inhibits Rc3. Hoping for ...Rc2.} ({But not} 27... Bxe5 28. dxe5 Ne8 {[#]} 29. Rc3 $1 $16 {[%mdl 512]}) 28. a4 {[%emt 0:01:13]} Be8 {[%emt 0:00:15]} 29. Bb6 {[%emt 0:00:00]} Rc2 {[%emt 0:00:00]} 30. Qa5 {[%emt 0:01:38]} Bc6 {[%emt 0:00:00]} 31. Qb5 $2 {[%mdl 8192]} Qc5 $4 {[%mdl 8192]} (31... Nxb5 $19 32. Nxc6 Qxc6) 32. Qxc5 $18 ({Weaker is} 32. Bxc5 axb5 33. Bxd6 Nxd6 $18) 32... Bd5 {[%emt 0:00:00]} 33. Qa5 {[%emt 0:01:45]} Bc6 34. Qd5 $2 {[%emt 0:00:00]} Bxd5 $11 {[%emt 0:00:00]} 35. Rfe3 {[%emt 0:01:38]} Nc3 {[%emt 0:04:14] Pair of Knights!} 36. Bf3 {[%emt 0:00:00]} Bxf3 {[%emt 0:00:45]} 37. Nxf3 {[%emt 0:00:00]} Nde4 {[%emt 0:00:10]} 38. Ba5 $1 {[%emt 0:00:00] Black must now prevent Bxc3.} Nd5 {[%emt 0:01:48] Strongly threatening ...b6.} 39. Rxe4 {[%emt 0:01:08]} (39. R3e2 $5 {[%cal Re2c2]} Rc6 40. Kg2 $11) 39... fxe4 {[%emt 0:00:00]} 40. Rxe4 {[%emt 0:00:04]} Rc6 {[%emt 0:00:10]} 41. Kf2 {[%emt 0:01:00]} g5 {[%emt 0:30:27]} 42. h4 {[%emt 0:01:24]} Rc2+ {[%emt 0:03:10]} 43. Re2 {[%emt 0:00:00][%mdl 32768] What a bad dream for Black.  Weighted Error Value: White=0.62/Black=0.41. Loss on time!?} (43. Ke1 $11) 1-0

[Event "Croatian Team Cup Final 2022"]
[Site "Vodice"]
[Date "2022.05.19"]
[Round "2.6"]
[White "Stevic, Hrvoje"]
[Black "Anic, Darko"]
[Result "1-0"]
[ECO "C55"]
[WhiteElo "2558"]
[BlackElo "2390"]
[Annotator "TA"]
[PlyCount "139"]
[EventDate "2022.05.18"]
[EventType "team-tourn"]
[EventCountry "CRO"]
[SourceTitle "playchess.com"]
[Source "ChessBase"]
[SourceQuality "1"]
[TimeControl "40/5400+30:1800+30"]

{[%evp 12,139,30,34,44,34,42,37,42,44,56,47,61,60,64,58,60,48,57,55,70,64,77,45,45,40,45,44,53,46,53,53,53,60,53,53,53,53,66,66,66,66,66,66,66,66,66,66,83,62,83,76,93,93,93,93,93,93,93,93,93,93,93,79,85,86,89,70,95,92,104,104,104,104,104,104,104,104,104,104,104,104,142,104,150,150,163,114,106,106,106,106,125,104,129,129,132,122,112,80,277,85,112,87,220,0,0,3,6,0,0,0,0,0,0,0,433,-644,0,0,0,0,0,0,0,0,1845,1739,1064,900]} 1. e4 {[%emt 0:01:54] Lukacs,P} e5 {[%emt 0:00:21]} 2. Nf3 {[%emt 0:00:13]} Nc6 {[%emt 0:00:22]} 3. Bc4 {[%emt 0:00:25]} Nf6 {[%emt 0:00:37]} 4. d3 {[%emt 0:00:35]} Be7 {[%emt 0:00:38]} 5. O-O {[%emt 0:00:47]} O-O {[%emt 0:00:37]} 6. Re1 {[%emt 0:01:08]} d6 {[%emt 0:00:32]} 7. a4 {[%emt 0:01:26]} a5 {[%emt 0:02:30] 7...h6 is setting a new trend. C55: Two Knights: 4 d3, 4 d4 exd4 5 e5 and Max Lange Attack.} 8. c3 {[%emt 0:03:01]} Nd7 {[%emt 0:02:53]} 9. Be3 {[%emt 0:01:07]} Bf6 {[%emt 0:04:17] White is slightly better.} 10. Nbd2 {[%emt 0:01:39] [#]} h6 $146 {[%emt 0:15:03]} ({Predecessor:} 10... g6 11. h3 Bg7 12. d4 exd4 13. cxd4 Nb4 14. Bg5 Qe8 15. Nf1 Nb6 16. Bb3 Be6 {1-0 (68) Nevednichy,V (2544)-Beliavsky,A (2667) Paks 2004 CBM 102 [Lukacs,P]}) 11. h3 {[%emt 0:02:06]} Ne7 {[%emt 0:03:30]} 12. d4 {[%emt 0:01:59]} Ng6 {[%emt 0:03:17]} 13. Qc2 {[%emt 0:06:27]} Re8 {[%emt 0:05:05]} 14. Rad1 {[%emt 0:23:44]} Qe7 {[%emt 0:08:28]} 15. Bb5 {[%emt 0:06:45]} Rd8 {[%emt 0:02:09]} 16. Nf1 {[%emt 0:11:31]} Nh4 {[%emt 0:18:06]} 17. Nxh4 {[%emt 0:01:26]} Bxh4 {[%emt 0:00:06]} 18. Ng3 {[%emt 0:00:02]} Bxg3 {[%emt 0:06:48]} 19. fxg3 {[%emt 0:00:04]} Nf6 {[%emt 0:05:25]} 20. g4 {[%emt 0:01:40]} Nh7 {[%emt 0:06:32] Prevents g5.} 21. Rf1 {[%emt 0:03:35]} Be6 {[%emt 0:03:11]} 22. d5 {[%emt 0:12:10]} Bd7 {[%emt 0:00:48]} 23. Bxd7 {[%emt 0:01:41]} Qxd7 {[%emt 0:00:08]} 24. c4 {[%emt 0:00:06] Inhibits b5.} Qe7 {[%emt 0:06:53]} 25. Rf5 {[%emt 0:02:07]} Rdc8 {[%emt 0:02:07]} 26. Rdf1 {[%emt 0:01:01] White is much more active. The black rooks are badly placed.} f6 {[%emt 0:00:15]} 27. h4 {[%emt 0:01:14]} Rf8 {[%emt 0:01:20]} 28. Qb3 {[%emt 0:06:21]} Qd7 {[%emt 0:00:20]} 29. Qd1 {[%emt 0:01:16]} (29. Qxb7 $2 Rfb8 30. Qc6 Qc8 $19) 29... c6 {[%emt 0:01:10]} 30. Re1 {[%emt 0:05:44][%cal Bf1e1,Be1e3,Be3g3][%mdl 32]} Ra6 {[%emt 0:00:22]} 31. Rf2 {[%emt 0:00:48]} c5 {[%emt 0:00:51]} 32. Bd2 {[%emt 0:00:21]} Rb6 {[%emt 0:00:30]} 33. Bc3 {[%emt 0:00:36]} (33. Bxa5 $6 Ra6 34. Bd2 Rxa4 $15) 33... Ra6 {[%emt 0:00:05]} 34. Re3 {[%emt 0:00:46]} Raa8 {[%emt 0:00:28]} 35. Rg3 {[%emt 0:00:26]} Rf7 {[%emt 0:00:13]} 36. Bd2 {[%emt 0:00:15]} b6 {[%emt 0:00:31]} 37. Qb3 {[%emt 0:00:18]} Rff8 {[%emt 0:00:25]} 38. Kf1 {[%emt 0:01:21][%cal Bg1f1,Bf1e1,Be1d1,Bd1c1,Bc1b1,Bb1a2,Ba2a3][%mdl 32]} (38. Qxb6 $2 Rfb8 39. Qc6 Qd8 $19) 38... Rab8 {[%emt 0:00:09]} 39. Ke1 {[%emt 0:00:11]} Qe8 {[%emt 0:00:29]} 40. Kd1 {[%emt 0:00:00]} Qg6 {[%emt 0:00:00]} 41. Rf5 {[%emt 0:01:22]} Qe8 {[%emt 0:01:25]} 42. Kc1 {[%emt 0:02:36]} Qd7 {[%emt 0:02:20]} 43. Kb1 {[%emt 0:04:30]} Kh8 {[%emt 0:06:12]} 44. Ka2 {[%emt 0:01:50]} Qe8 {[%emt 0:05:47]} 45. Ka3 {[%emt 0:00:43]} Qd7 {[%emt 0:01:21]} 46. Qd1 {[%emt 0:01:10]} Rf7 {[%emt 0:01:05]} 47. Rff3 {[%emt 0:01:03]} Kg8 {[%emt 0:02:14]} (47... Rff8 $142) 48. Rb3 $16 {[%emt 0:00:25]} Rb7 {[%emt 0:00:31]} 49. Rb5 {[%emt 0:01:33]} (49. Rh3 $18) 49... Rf8 {[%emt 0:01:38]} 50. Rgb3 {[%emt 0:00:46]} Rfb8 {[%emt 0:01:38]} 51. Qf3 {[%emt 0:00:34]} Nf8 {[%emt 0:04:02]} 52. g5 {[%emt 0:02:29]} hxg5 {[%emt 0:01:51]} 53. hxg5 {[%emt 0:00:12]} fxg5 {[%emt 0:00:56]} 54. Bxg5 {[%emt 0:00:05]} Qe8 {[%emt 0:00:34]} 55. Bd2 {[%emt 0:02:04]} Rf7 $2 {[%emt 0:01:13]} (55... Qg6 $16) 56. Qg4 $2 {[%emt 0:01:57]} (56. Qe2 $18 {and the rest is easy.}) 56... Rf1 {[%emt 0:00:47][%cal Rf1a1]} 57. Rg3 {[%emt 0:01:02][%csl Gg3][%cal Rg4g7]} Rb7 {[%emt 0:04:57] [#]} (57... Qd7 $16 {keeps fighting.}) 58. Qh4 $2 {[%emt 0:03:34]} (58. Bh6 $1 $18 {[%cal Rh6g7]}) 58... Qf7 $11 {[%emt 0:01:27] ...Qf2 is the strong threat.} 59. Rh3 {[%emt 0:05:43][%csl Gh3][%cal Rh4h8]} Qg6 $1 {[%emt 0:00:24]} 60. Ka2 {[%emt 0:00:54]} (60. Bxa5 Qxg2 61. Bc3 (61. Bxb6 Qc2 $17) (61. Rxb6 $2 Rxb6 62. Bxb6 Ra1+ 63. Kb3 Rb1 $19) 61... Qe2 $15) 60... Qxg2 {[%emt 0:00:38]} 61. Rbb3 $1 {[%emt 0:00:08]} Ng6 {[%emt 0:01:38]} (61... Qxd2 62. Qh8+ Kf7 63. Rbf3+ Qf4 64. Qh5+ (64. Rxf4+ Rxf4 65. Qh5+ g6 $16) 64... g6 65. Rxf4+ Rxf4 66. Qg5 $16) 62. Qh7+ {[%emt 0:03:02]} Kf7 $1 {[%emt 0:00:06]} (62... Kf8 $2 63. Rhg3 Qxe4 64. Qxg6 Qxg6 65. Rxg6 $18) 63. Bh6 $36 {[%emt 0:01:09][%mdl 2048] White is more active. Chess con chili.} Nf8 $2 {[%emt 0:00:32][%mdl 8192] [#]} (63... Qxe4 $11 64. Rhf3+ (64. Qxg7+ $2 Ke8 $19) 64... Rxf3 65. Qxg7+ (65. Rxf3+ Qxf3 66. Qxg7+ Ke8 $11) 65... Ke8 66. Qxb7 Rxb3 67. Qc8+ Ke7) 64. Qh8 $4 {[%emt 0:00:03][%mdl 8192]} (64. Rhf3+ $3 $18 {[%mdl 512]} Rxf3 65. Rxf3+ Qxf3 66. Qxg7+ Ke8 67. Qxb7) 64... Qxe4 $2 {[%emt 0:01:01]} (64... Ke8 $2 65. Bc1 $19) (64... gxh6 $19 65. Qxh6 (65. Rhg3 $2 Qxe4 66. Rbc3 Qb1+ 67. Ka3 Ke8 $19) 65... Qxe4 66. Qh5+ Ke7 67. Qh4+ Qxh4 68. Rxh4 Rf4) 65. Rhf3+ {[%emt 0:00:57]} Rxf3 {[%emt 0:00:05]} 66. Rxf3+ {[%emt 0:00:06]} Qxf3 {[%emt 0:00:16]} 67. Qxg7+ {[%emt 0:00:02]} Ke8 {[%emt 0:00:05]} 68. Qxb7 {[%emt 0:00:06]} Nd7 $2 {[%emt 0:01:40][%mdl 8192]} (68... Qf6 $11 69. Qb8+ Ke7 70. Bxf8+ Qxf8 71. Qc7+ (71. Qxb6 Qd8 $11) 71... Ke8) 69. Qc8+ $18 {[%emt 0:00:14]} Ke7 {[%emt 0:00:06]} 70. Bg5+ {[%emt 0:00:04][%mdl 64] Deflection.  Weighted Error Value: White=0.16 (very precise) /Black=0.14 (very precise)} 1-0

[Event "Croatian Team Cup Final 2022"]
[Site "Vodice"]
[Date "2022.05.19"]
[Round "2.7"]
[White "Biti, Ozren"]
[Black "Palac, Mladen"]
[Result "0-1"]
[ECO "B23"]
[WhiteElo "2334"]
[BlackElo "2505"]
[Annotator "TA"]
[PlyCount "90"]
[EventDate "2022.05.18"]
[EventType "team-tourn"]
[EventCountry "CRO"]
[SourceTitle "playchess.com"]
[Source "ChessBase"]
[SourceQuality "1"]
[TimeControl "40/5400+30:1800+30"]

{[%evp 18,90,-8,-3,0,-20,0,0,0,0,0,0,0,0,0,0,0,0,0,-28,-52,-93,-37,-63,-75,-190,-177,-188,-182,-203,-157,-168,-147,-176,-170,-173,-170,-170,-170,-199,-200,-225,-230,-226,-230,-226,-206,-251,-233,-207,-116,-119,-39,-48,-39,-37,-38,-37,-45,-38,-45,-56,0,-67,-65,-124,-92,-112,-58,-285,-270,-558,-547,-487,-284]} 1. e4 {[%emt 0:02:52]} c5 {[%emt 0:00:14]} 2. Nc3 {[%emt 0:00:09]} Nc6 {[%emt 0:00:16]} 3. f4 {[%emt 0:00:18]} g6 {[%emt 0:00:25]} 4. Nf3 {[%emt 0:00:19]} Bg7 {[%emt 0:00:06]} 5. Bc4 {[%emt 0:00:12]} e6 {[%emt 0:01:50]} 6. f5 {[%emt 0:00:09]} Nge7 {[%emt 0:04:39]} 7. fxe6 {[%emt 0:00:11]} fxe6 {[%emt 0:03:12]} 8. d3 {[%emt 0:00:20]} d5 {[%emt 0:07:34]} 9. Bb3 {[%emt 0:00:27]} b5 {[%emt 0:05:44]} 10. O-O {[%emt 0:17:00]} c4 {[%emt 0:16:07] B23: Closed Sicilian: Lines without g3.} 11. dxc4 {[%emt 0:00:00]} dxc4 {[%emt 0:00:53] [#] Hoping for ...Qxd1.} 12. Qxd8+ {[%emt 0:00:00]} Kxd8 {[%emt 0:00:02] The position is equal.} ({Don't do} 12... Nxd8 {[#]} 13. Nxb5 $1 cxb3 14. Nc7+ Kd7 15. Nxa8 $14) 13. Nxb5 {[%emt 0:00:00]} cxb3 {[%emt 0:00:18]} 14. Rd1+ {[%emt 0:00:00]} Bd7 {[%emt 0:01:15]} 15. axb3 {[%emt 0:00:00]} h6 {[%emt 0:21:07] Inhibits Ng5.} 16. Be3 {[%emt 0:05:26]} Rb8 {[%emt 0:10:39]} 17. Nd6 {[%emt 0:20:21]} Rf8 {[%emt 0:00:17] [#]} 18. Nc4 $146 {[%emt 0:10:31]} ({Predecessor:} 18. Bxa7 Bxb2 19. Ra2 Nxa7 20. Rxb2 Nac6 21. c4 Ra8 22. b4 Nc8 23. Rbd2 Ra7 24. b5 {1-0 (31) Graham,C (1866)-Fernandes,J (1834) Bournemouth 2016}) 18... Nc8 {[%emt 0:02:13]} 19. Bc5 {[%emt 0:08:09]} Rf7 {[%emt 0:01:44]} (19... Rf4 $17 20. Re1 Rb5) 20. Ra6 {[%emt 0:02:11]} Kc7 {[%emt 0:03:50]} 21. Nd6 {[%emt 0:17:22]} (21. Bf2 $17) 21... Nxd6 $19 {[%emt 0:00:24]} 22. Bxd6+ {[%emt 0:00:11]} Kb7 {[%emt 0:00:09]} 23. Ra4 {[%emt 0:01:13]} Ra8 {[%emt 0:04:04]} ({Inferior is} 23... Bxb2 24. Bxb8 Nxb8 25. Rb4+ Ka8 26. Rc4 $15) 24. c3 {[%emt 0:02:02]} g5 {[%emt 0:04:26]} 25. h3 {[%emt 0:04:33]} Be8 {[%emt 0:04:57]} 26. e5 {[%emt 0:02:51]} Rd7 {[%emt 0:01:13][%cal Oc6e5]} 27. Rda1 {[%emt 0:02:16]} a6 {[%emt 0:02:18]} 28. b4 {[%emt 0:03:23][%cal Ob4b5]} Rdd8 {[%emt 0:00:25]} 29. R4a3 {[%emt 0:00:47]} Bh5 {[%emt 0:01:47] ...Bxf3 is the strong threat.} 30. g4 {[%emt 0:00:31]} Bg6 {[%emt 0:00:04]} 31. Re1 {[%emt 0:00:27]} Bf8 {[%emt 0:01:23]} 32. Bxf8 {[%emt 0:01:45]} Rxf8 {[%emt 0:00:02]} 33. Nd2 {[%emt 0:00:11]} Bd3 {[%emt 0:02:30]} (33... Kb6 $19 {Strongly threatening ...Bd3.} 34. Nb3 Rfd8) 34. Nb3 $17 {[%emt 0:00:23]} Rf3 {[%emt 0:00:37]} (34... Kb6 $17 {aiming for ...Bc4.} 35. Nc5 Rfd8) 35. Nc5+ $15 {[%emt 0:00:31]} Kb6 {[%emt 0:00:01]} 36. Kg2 {[%emt 0:00:31]} Raf8 {[%emt 0:00:06] White must now prevent ...R8f7.} 37. Nd7+ {[%emt 0:00:10]} Kb7 {[%emt 0:00:42]} 38. Nxf8 {[%emt 0:00:56]} Rxf8 {[%emt 0:00:01]} 39. Raa1 {[%emt 0:00:48]} Rf4 {[%emt 0:00:30]} ({Black should play} 39... Ne7 $15) 40. Re3 {[%emt 0:00:00]} (40. Rad1 $1 $11 Be4+ 41. Kg3) 40... Be4+ {[%emt 0:00:00][%mdl 1024] Black has compensation.} 41. Kg3 {[%emt 0:03:33]} (41. Kg1 $1 $15) 41... Bd5 {[%emt 0:04:21]} 42. Rc1 {[%emt 0:08:17]} Ne7 {[%emt 0:07:31] Black is more active.} (42... Kb6 $17 {And now ...Ne7 would win.} 43. Rc2 Kb5) 43. Rc2 $2 {[%emt 0:08:31]} ({White should try} 43. c4 $1 $15 Rxc4 44. Rxc4 Bxc4 45. Rf3) 43... h5 $1 $19 {[%emt 0:02:20]} 44. Kh2 $2 {[%emt 0:05:56]} (44. c4 {was the only defense.} h4+ 45. Kh2 Rxc4 46. Rec3 Rxc3 47. bxc3) 44... Rf1 {[%emt 0:03:33]} ({Not} 44... hxg4 45. hxg4 Kb6 46. Kg3 $17) 45. Rg2 {[%emt 0:00:17]} hxg4 {[%emt 0:03:10] Weighted Error Value: White=0.35/Black=0.13 (very precise)} (45... h4 $142 46. c4 Bxg2 47. Kxg2 Rb1) 0-1

[Event "Croatian Team Cup Final 2022"]
[Site "Vodice"]
[Date "2022.05.19"]
[Round "2.8"]
[White "Zelcic, Robert"]
[Black "Jusic, Zdenko"]
[Result "1-0"]
[ECO "C41"]
[WhiteElo "2497"]
[BlackElo "2236"]
[Annotator "TA"]
[PlyCount "53"]
[EventDate "2022.05.18"]
[EventType "team-tourn"]
[EventCountry "CRO"]
[SourceTitle "playchess.com"]
[Source "ChessBase"]
[SourceQuality "1"]
[TimeControl "40/5400+30:1800+30"]

{[%evp 15,53,29,46,11,46,54,100,86,154,141,132,147,144,128,135,131,130,141,131,80,84,82,85,86,110,104,104,112,199,202,381,387,380,379,368,369,606,602,597,595]} 1. e4 {[%emt 0:00:03]} d6 {[%emt 0:00:15]} 2. d4 {[%emt 0:00:08]} Nf6 {[%emt 0:02:25]} 3. Nc3 {[%emt 0:00:07]} e5 {[%emt 0:00:08]} 4. Nf3 {[%emt 0:00:03]} Nbd7 {[%emt 0:00:45]} 5. Bc4 {[%emt 0:00:16]} Be7 {[%emt 0:00:08]} 6. O-O {[%emt 0:00:05]} O-O {[%emt 0:00:09]} 7. a4 {[%emt 0:00:22]} a5 {[%emt 0:00:21]} 8. h3 {[%emt 0:01:31]} c6 {[%emt 0:00:33]} 9. Ba2 {[%emt 0:02:50] C41: Philidor Defence.} Qb6 {[%emt 0:01:58]} 10. Be3 {[%emt 0:04:32] [#] And now dxe5 would win.} Qb4 $146 {[%emt 0:01:23]} (10... Qxb2 $2 11. Qd2 $18) (10... exd4 $14 11. Nxd4 Nc5) ({Predecessor:} 10... exd4 11. Nxd4 Nc5 12. Nb3 Nfd7 13. Rb1 Qb4 14. Nd4 Nf6 {0-1 (30) Santagati,A (2219)-Laketic,G (2439) Montecatini Terme 2011}) 11. Re1 $1 $16 {[%emt 0:06:05] White is better.} Rb8 {[%emt 0:12:39]} ({Less strong is} 11... Qxb2 12. Qd2 d5 13. Reb1 $16 (13. exd5 $2 Bb4 $19)) (11... exd4 $142 12. Nxd4 Nc5) 12. Bb3 {[%emt 0:07:29] Hoping for Na2.} exd4 {[%emt 0:01:34]} 13. Bxd4 {[%emt 0:00:32] aiming for Na2.} ({Much weaker is} 13. Qxd4 $6 Nc5 $14) 13... Nc5 {[%emt 0:02:34]} 14. Na2 {[%emt 0:00:10]} Qb6 {[%emt 0:00:18]} 15. e5 {[%emt 0:00:06]} Nd5 {[%emt 0:00:39]} 16. exd6 {[%emt 0:05:46]} Bxd6 {[%emt 0:00:48]} 17. Bxd5 {[%emt 0:00:06]} (17. Nc3 $142 $1 {[%cal Rc3e4]}) 17... cxd5 {[%emt 0:00:18]} 18. Nc3 {[%emt 0:00:03]} Be6 {[%emt 0:02:34]} 19. Nb5 {[%emt 0:05:12]} Be7 {[%emt 0:01:12]} 20. Qd2 {[%emt 0:03:13]} Rbc8 {[%emt 0:03:51] [#]} 21. Qf4 $1 {[%emt 0:06:02] White is more active.} Rfe8 {[%emt 0:03:03] [#]} (21... Qd8 $16) 22. Ng5 $1 $40 {[%emt 0:11:25][%cal Oe1e6][%mdl 128] Strongly threatening Rxe6! White wants a kill. Pair of Knights!} f6 $2 {[%emt 0:08:12]} (22... h6) 23. Nxe6 {[%emt 0:01:26]} Nxe6 {[%emt 0:00:15]} 24. Bxb6 {[%emt 0:00:08]} Nxf4 {[%emt 0:00:24]} 25. Nc7 {[%emt 0:00:01]} Bc5 $2 {[%emt 0:06:00]} (25... Kf8 26. Nxe8 Kxe8) 26. Rxe8+ {[%emt 0:00:12]} Rxe8 {[%emt 0:00:09]} 27. Bxc5 {[%emt 0:00:22] Weighted Error Value: White=0.05 (flawless) /Black=0.44} 1-0